fUST/lending_fUST_20250920
["ID","MTS","AMOUNT","RATE_DAILY","PERIOD"]
[386515543,1758330632695,-480.0,0.00027727,2]
[386515545,1758330632704,-480.0,0.00027727,2]
[386515546,1758330632714,-480.0,0.00027727,2]
[386515547,1758330632723,-480.0,0.00027727,2]
[386515548,1758330632732,-480.0,0.00027727,2]
[386515549,1758330632849,-168.0,0.00027728,2]
[386515550,1758330632860,-168.0,0.00027776,2]
[386515551,1758330632869,-500.0,0.00027779,2]
[386515552,1758330632879,-293.85068442,0.00027792,2]
[386515553,1758330632889,-500.0,0.00027815,2]
[386515554,1758330632898,-500.0,0.00027832,2]
[386515555,1758330632908,-168.0,0.00027857,2]
[386515556,1758330632917,-500.4444083,0.00027858,2]
[386515557,1758330632927,-167.774,0.00027878,18]
[386515558,1758330632937,-500.0,0.00027897,2]
[386515559,1758330632946,-436.43394056,0.00027913,2]
[386515560,1758330632955,-168.0,0.00027929,2]
[386515561,1758330632965,-168.0,0.00027943,2]
[386515562,1758330632975,-207.73142054,0.00027953,2]
[386515564,1758330632986,-207.73142053,0.00027953,2]
[386515565,1758330632995,-168.0,0.00027993,2]
[386515566,1758330633006,-48325.21679469,0.00028,2]
[386515567,1758330633016,-1055.04,0.00028,2]
[386515568,1758330633026,-168.0,0.00028013,2]
[386515569,1758330633036,-207.73142054,0.00028053,2]
[386515570,1758330633046,-168.0,0.000281,2]
[386515571,1758330633055,-436.43394055,0.00028117,2]
[386515572,1758330633066,-1055.04,0.0002814,2]
[386515573,1758330633075,-168.0,0.0002814,2]
[386515574,1758330633086,-500.0,0.00028172,2]
[386515575,1758330633096,-500.0,0.00028201,2]
[386515576,1758330633106,-500.0,0.0002821,2]
[386515577,1758330633115,-898.93599219,0.00028222,2]
[386515578,1758330633125,-500.0,0.00028252,2]
[386515579,1758330633135,-1055.04,0.0002828,2]
[386515580,1758330633145,-168.0,0.00028283,2]
[386515581,1758330633154,-436.43394055,0.00028321,2]
[386515582,1758330633164,-264.9789578,0.00028356,30]
[386515583,1758330633174,-500.0,0.00028366,2]
[386515584,1758330633183,-249.0,0.00028386,2]
[386515585,1758330633194,-1055.04,0.0002842,2]
[386515586,1758330633204,-500.0,0.00028427,2]
[386515587,1758330633214,-500.0,0.00028438,2]
[386515588,1758330633223,-1419.98921655,0.00028455,2]
[386515589,1758330633233,-162.0300095,0.00028493,30]
[386515590,1758330633243,-162.0300095,0.00028493,30]
[386515591,1758330633253,-162.0300095,0.00028493,30]
[386515592,1758330633262,-162.0300095,0.00028493,30]
[386515593,1758330633272,-162.0300095,0.00028493,30]
[386515594,1758330633281,-162.0300095,0.00028493,30]
[386515595,1758330633291,-500.0,0.00028519,2]
[386515596,1758330633300,-436.43394055,0.00028525,2]
[386515597,1758330633310,-500.0,0.00028547,2]
[386515598,1758330633319,-1055.04,0.0002856,2]
[386515599,1758330633330,-168.0,0.00028598,2]
[386515600,1758330633340,-500.0,0.00028603,2]
[386515601,1758330633353,-500.0,0.00028606,2]
[386515602,1758330633364,-500.0,0.0002861,2]
[386515603,1758330633374,-500.0,0.00028616,2]
[386515604,1758330633383,-500.0,0.00028617,2]
[386515605,1758330633395,-500.0,0.00028637,2]
[386515606,1758330633404,-500.0,0.00028637,2]
[386515607,1758330633414,-157.74312269,0.00028637,2]
[386515608,1758330633426,-151.0,0.00028637,2]
[386515609,1758330633436,-151.0,0.00028637,2]
[386515610,1758330633445,-298.30891944,0.00028637,2]
[386515611,1758330633455,-500.0,0.00028655,2]
[386515612,1758330633467,-168.0,0.00028662,2]
[386515613,1758330633477,-500.0,0.00028699,2]
[386515614,1758330633487,-1055.04,0.000287,2]
[386515615,1758330633497,-436.43394055,0.00028728,2]
[386515616,1758330633507,-500.0,0.00028748,2]
[386515617,1758330633517,-500.0,0.00028822,2]
[386515618,1758330633527,-1055.04,0.0002884,2]
[386515619,1758330633537,-500.0,0.00028852,2]
[386515620,1758330633547,-500.0,0.00028879,2]
[386515621,1758330633557,-500.0,0.00028911,2]
[386515622,1758330633567,-500.0,0.00028911,2]
[386515623,1758330633579,-151.0,0.00028911,2]
[386515624,1758330633590,-500.0,0.00028912,2]
[386515625,1758330633600,-500.0,0.00028927,2]
[386515626,1758330633610,-436.43394055,0.00028932,2]
[386515627,1758330633620,-168.0,0.00028958,2]
[386515628,1758330633629,-500.0,0.00029009,2]
[386515629,1758330633639,-500.0,0.00029065,2]
[386515630,1758330633648,-168.0,0.00029101,2]
[386515631,1758330633657,-436.43394055,0.00029136,2]
[386515632,1758330633667,-500.0,0.00029142,2]
[386515633,1758330633676,-500.0,0.00029146,2]
[386515634,1758330633686,-168.0,0.00029182,2]
[386515635,1758330633695,-500.0,0.00029185,2]
[386515636,1758330633705,-500.0,0.00029185,2]
[386515637,1758330633715,-198.0,0.00029185,2]
[386515638,1758330633724,-6111.81689471,0.00029223,2]
[386515639,1758330633733,-1164.86558335,0.00029223,2]
[386515640,1758330633743,-2036.11291393,0.00029223,2]
[386515641,1758330633753,-2606.62466731,0.00029223,2]
[386515642,1758330633763,-151.7458028,0.00029266,2]
[386515643,1758330633772,-500.0,0.00029268,2]
[386515644,1758330633782,-500.0,0.00029273,5]
[386515645,1758330633793,-500.0,0.00029273,5]
[386515646,1758330633802,-249.0,0.00029278,7]
[386515647,1758330633811,-60675.7787055,0.00029299,2]
[386515648,1758330633821,-2550.36673543,0.00029299,2]
[386515649,1758330633830,-2000.0,0.000293,2]
[386515650,1758330633840,-2000.0,0.000293,2]
[386515651,1758330633850,-1000.0,0.000293,60]
[386515652,1758330633859,-250.0,0.000293,10]
[386515653,1758330633869,-204.831726,0.000293,2]
[386515654,1758330633879,-3080.3312064,0.00029309,2]
[386515655,1758330633889,-34489.4623313,0.00029309,2]
[386515656,1758330633898,-500.0,0.00029312,2]
[386515657,1758330633908,-60675.7787055,0.00029315,2]
[386515658,1758330633918,-2550.36673543,0.00029315,2]
[386515659,1758330633928,-151.0,0.00029322,7]
[386515660,1758330633939,-259.38171,0.00029322,7]
[386515661,1758330633949,-3476.29899321,0.00029323,2]
[386515662,1758330633958,-151.0,0.00029323,7]
[386515663,1758330633968,-151.0,0.00029323,7]
[386515664,1758330633978,-151.0,0.00029323,7]
[386515665,1758330633987,-151.0,0.00029323,7]
[386515666,1758330633997,-151.0,0.00029323,7]
[386515667,1758330634008,-151.0,0.00029323,7]
[386515668,1758330634018,-151.0,0.00029323,7]
[386515669,1758330634027,-151.0,0.00029323,7]
[386515670,1758330634038,-151.0,0.00029323,7]
[386515671,1758330634047,-151.0,0.00029323,7]
[386515672,1758330634057,-151.0,0.00029323,7]
[386515673,1758330634067,-151.0,0.00029323,7]
[386515674,1758330634076,-188.560759,0.00029323,7]
[386515675,1758330634087,-151.0,0.00029323,7]
[386515676,1758330634097,-151.0,0.00029323,7]
[386515677,1758330634107,-151.0,0.00029323,7]
[386515678,1758330634116,-151.0,0.00029323,7]
[386515679,1758330634126,-151.0,0.00029323,7]
[386515680,1758330634136,-151.0,0.00029323,7]
[386515681,1758330634147,-151.0,0.00029323,7]
[386515682,1758330634157,-151.0,0.00029323,7]
[386515683,1758330634167,-151.0,0.00029323,7]
[386515684,1758330634178,-151.0,0.00029323,7]
[386515685,1758330634188,-151.0,0.00029323,7]
[386515686,1758330634198,-151.0,0.00029323,7]
[386515687,1758330634208,-151.0,0.00029323,7]
[386515688,1758330634219,-151.0,0.00029323,7]
[386515689,1758330634228,-151.0,0.00029323,7]
[386515690,1758330634238,-151.0,0.00029323,7]
[386515691,1758330634248,-151.0,0.00029323,7]
[386515692,1758330634258,-151.0,0.00029323,7]
[386515693,1758330634267,-151.0,0.00029323,7]
[386515694,1758330634277,-151.0,0.00029323,7]
[386515695,1758330634286,-151.0,0.00029323,7]
[386515696,1758330634295,-151.0,0.00029323,7]
[386515697,1758330634305,-151.0,0.00029323,7]
[386515698,1758330634314,-151.0,0.00029323,7]
[386515699,1758330634323,-151.0,0.00029323,7]
[386515700,1758330634333,-151.0,0.00029323,7]
[386515701,1758330634343,-151.0,0.00029323,7]
[386515702,1758330634355,-151.0,0.00029323,7]
[386515703,1758330634364,-151.0,0.00029323,7]
[386515704,1758330634374,-151.0,0.00029323,7]
[386515705,1758330634383,-151.0,0.00029323,7]
[386515706,1758330634394,-151.0,0.00029323,7]
[386515707,1758330634403,-151.0,0.00029323,7]
[386515708,1758330634412,-151.0,0.00029323,7]
[386515709,1758330634423,-151.0,0.00029323,7]
[386515710,1758330634433,-151.0,0.00029323,7]
[386515711,1758330634444,-151.0,0.00029323,7]
[386515712,1758330634454,-151.0,0.00029323,7]
[386515713,1758330634464,-151.0,0.00029323,7]
[386515714,1758330634475,-151.0,0.00029323,7]
[386515715,1758330634484,-151.0,0.00029323,7]
[386515716,1758330634493,-151.0,0.00029323,7]
[386515717,1758330634503,-151.0,0.00029323,7]
[386515718,1758330634512,-151.0,0.00029323,7]
[386515719,1758330634521,-151.0,0.00029323,7]
[386515720,1758330634530,-151.444751,0.00029323,7]
[386515721,1758330634539,-151.0,0.00029323,7]
[386515722,1758330634548,-151.0,0.00029323,7]
[386515723,1758330634557,-151.0,0.00029323,7]
[386515724,1758330634566,-151.0,0.00029323,7]
[386515725,1758330634576,-151.743909,0.00029323,7]
[386515726,1758330634586,-151.0,0.00029323,7]
[386515727,1758330634596,-151.0,0.00029323,7]
[386515728,1758330634605,-151.0,0.00029323,7]
[386515729,1758330634615,-262.345444,0.00029323,7]
[386515730,1758330634626,-151.0,0.00029323,7]
[386515731,1758330634635,-151.0,0.00029323,7]
[386515732,1758330634645,-151.0,0.00029323,7]
[386515733,1758330634655,-151.0,0.00029323,7]
[386515734,1758330634664,-222.799,0.00029323,7]
[386515735,1758330634673,-151.0,0.00029323,7]
[386515736,1758330634682,-151.0,0.00029323,7]
[386515737,1758330634691,-151.0,0.00029323,7]
[386515738,1758330634701,-151.0,0.00029323,7]
[386515739,1758330634710,-151.0,0.00029323,7]
[386515740,1758330634720,-151.0,0.00029323,7]
[386515741,1758330634729,-151.0,0.00029323,7]
[386515742,1758330634738,-151.0,0.00029323,7]
[386515743,1758330634747,-151.0,0.00029323,7]
[386515744,1758330634756,-151.0,0.00029323,7]
[386515745,1758330634765,-151.0,0.00029323,7]
[386515746,1758330634775,-151.0,0.00029323,7]
[386515747,1758330634784,-151.0,0.00029323,7]
[386515748,1758330634793,-151.0,0.00029323,7]
[386515749,1758330634803,-151.369045,0.00029323,7]
[386515750,1758330634814,-151.0,0.00029323,7]
[386515751,1758330634824,-151.0,0.00029323,7]
[386515752,1758330634835,-151.0,0.00029323,7]
[386515753,1758330634844,-151.0,0.00029323,7]
[386515754,1758330634853,-151.0,0.00029323,7]
[386515755,1758330634863,-151.0,0.00029323,7]
[386515756,1758330634873,-151.0,0.00029323,7]
[386515757,1758330634882,-151.0,0.00029323,7]
[386515758,1758330634892,-151.0,0.00029323,7]
[386515759,1758330634903,-158.657859,0.00029323,7]
[386515760,1758330634913,-151.0,0.00029323,7]
[386515761,1758330634923,-151.0,0.00029323,7]
[386515762,1758330634932,-151.0,0.00029323,7]
[386515763,1758330634941,-151.0,0.00029323,7]
[386515764,1758330634950,-151.0,0.00029323,7]
[386515765,1758330634960,-151.0,0.00029323,7]
[386515766,1758330634970,-151.0,0.00029323,7]
[386515767,1758330634980,-151.0,0.00029323,7]
[386515768,1758330634989,-151.0,0.00029323,7]
[386515769,1758330634998,-151.0,0.00029323,7]
[386515770,1758330635008,-151.0,0.00029323,7]
[386515771,1758330635019,-151.0,0.00029323,7]
[386515772,1758330635031,-151.0,0.00029323,7]
[386515773,1758330635041,-151.0,0.00029323,7]
[386515774,1758330635050,-167.333707,0.00029323,7]
[386515775,1758330635059,-151.0,0.00029323,7]
[386515776,1758330635068,-151.0,0.00029323,7]
[386515777,1758330635078,-151.0,0.00029323,7]
[386515778,1758330635088,-151.0,0.00029323,7]
[386515779,1758330635097,-151.0,0.00029323,7]
[386515780,1758330635106,-151.0,0.00029323,7]
[386515781,1758330635115,-151.0,0.00029323,7]
[386515782,1758330635125,-180.535018,0.00029323,7]
[386515783,1758330635134,-187902.66718234,0.00029323,20]
[386515784,1758330635149,-6511.19152677,0.00029323,20]
[386515805,1758330638074,-151.0,0.00028637,2]
[386515806,1758330638085,-341525.48723044,0.00029323,20]
[386515807,1758330638095,-427.25636811,0.00029323,30]
[386515808,1758330638104,-331.77492868,0.00029323,30]
[386515809,1758330638113,-1202.12774138,0.00029323,30]
[386515810,1758330638123,-1538.44945298,0.00029323,32]
[386515811,1758330638133,-2353.30844377,0.00029323,30]
[386515812,1758330638143,-3118.07130825,0.00029323,2]
[386515813,1758330638152,-247.32576394,0.00029323,30]
[386515814,1758330638161,-677.78653699,0.00029323,30]
[386515815,1758330638171,-488.36431813,0.00029323,30]
[386515816,1758330638181,-515.88836623,0.00029323,30]
[386515817,1758330638190,-179.54241967,0.00029323,30]
[386515818,1758330638199,-166.59378657,0.00029323,2]
[386515819,1758330638208,-540039.00308281,0.00029323,20]
[386515998,1758330833954,207.89283327,0.000199,2]
[386515999,1758331017582,207.89283327,0.000199,2]
[386516003,1758331083035,220.30641932,0.000199,2]
[386516016,1758331398238,207.32586374,0.000199,2]
[386516055,1758331582103,207.89283327,0.000199,2]
[386516065,1758331753129,-183.5087203,0.00021,5]
[386516066,1758331765149,207.89283327,0.000199,2]
[386516241,1758331838310,-12.4066217,0.00021,5]
[386516242,1758331838319,-218.21697028,0.000249,2]
[386516243,1758331838328,-214.65219417,0.00024999,2]
[386516244,1758331838338,-293.68447948,0.00024999,2]
[386516245,1758331838347,-1071.40701559,0.00025,2]
[386516246,1758331838357,-10500.46608821,0.00025,2]
[386516247,1758331838366,-2494.13312827,0.00025,5]
[386516248,1758331838376,-40090.33893373,0.00025,3]
[386516249,1758331838386,-500.0,0.00025,2]
[386516250,1758331838395,-3963.88697192,0.00025,2]
[386516251,1758331838404,-500.0,0.00026384,2]
[386516252,1758331838414,-282.2149475,0.00026999,2]
[386516253,1758331838423,-247.78066607,0.00026999,2]
[386516254,1758331838432,-39326.64455179,0.00027,2]
[386516255,1758331838441,-198.26325302,0.0002729,2]
[386516256,1758331838451,-233.43972884,0.0002734,2]
[386516257,1758331838460,-848.13460282,0.0002734,2]
[386516258,1758331838469,-198.26325301,0.00027388,2]
[386516259,1758331838478,-197.68813311,0.0002739,2]
[386516260,1758331838488,-150.0,0.0002739,2]
[386516261,1758331838497,-150.41672372,0.00027417,5]
[386516262,1758331838507,-505.77612432,0.00027417,5]
[386516263,1758331838516,-151.0,0.00027484,2]
[386516264,1758331838526,-250.0,0.00027484,2]
[386516265,1758331838535,-250.0,0.00027484,2]
[386516266,1758331838545,-151.0,0.00027484,2]
[386516267,1758331838554,-374.47588989,0.00027484,2]
[386516268,1758331838563,-151.0,0.00027484,2]
[386516269,1758331838573,-500.0,0.00027484,2]
[386516270,1758331838582,-176.42536981,0.00027484,2]
[386516271,1758331838591,-151.0,0.00027484,2]
[386516272,1758331838601,-500.0,0.00027484,2]
[386516273,1758331838610,-151.0,0.00027484,2]
[386516274,1758331838620,-500.0,0.00027484,2]
[386516275,1758331838630,-151.0,0.00027484,2]
[386516276,1758331838640,-500.0,0.00027484,2]
[386516277,1758331838650,-151.0,0.00027484,2]
[386516278,1758331838659,-500.0,0.00027484,2]
[386516279,1758331838668,-151.0,0.00027484,2]
[386516280,1758331838678,-500.0,0.00027484,2]
[386516281,1758331838687,-175.47550351,0.00027484,2]
[386516282,1758331838696,-152.83668576,0.00027484,2]
[386516283,1758331838706,-500.0,0.00027484,2]
[386516284,1758331838715,-151.0,0.00027484,2]
[386516285,1758331838725,-500.0,0.00027484,2]
[386516286,1758331838734,-20006.03981059,0.00027484,2]
[386516287,1758331838743,-500.0,0.00027484,2]
[386516288,1758331838753,-500.0,0.00027484,2]
[386516289,1758331838761,-500.0,0.00027484,2]
[386516290,1758331838771,-151.0,0.00027484,2]
[386516291,1758331838780,-500.0,0.00027484,2]
[386516292,1758331838789,-500.0,0.00027484,2]
[386516293,1758331838799,-151.37015908,0.00027484,2]
[386516294,1758331838808,-518.36603012,0.00027484,2]
[386516295,1758331838817,-505.24913602,0.00027484,2]
[386516296,1758331838826,-977.0,0.00027488,2]
[386516297,1758331838835,-2158.0,0.00027488,2]
[386516298,1758331838845,-634.0,0.00027488,2]
[386516299,1758331838854,-410.0,0.00027488,2]
[386516300,1758331838863,-415.167,0.00027488,2]
[386516301,1758331838873,-45338.09010475,0.000275,2]
[386516302,1758331838883,-500.0,0.00027534,2]
[386516303,1758331838892,-217.99592756,0.00027572,2]
[386516304,1758331838901,-500.0,0.00027709,2]
[386516305,1758331838910,-168.0,0.00027931,2]
[386516306,1758331838919,-500.0,0.00027947,2]
[386516307,1758331838928,-666.27621678,0.00027953,2]
[386516308,1758331838938,-500.0,0.00027962,2]
[386516309,1758331838947,-500.0,0.00027986,2]
[386516310,1758331838956,-200.0,0.00028,120]
[386516311,1758331838966,-1299.999999,0.00028,2]
[386516312,1758331838975,-2141.76530093,0.00028,120]
[386516313,1758331838984,-159.14781448,0.00028,2]
[386516314,1758331838994,-1055.04,0.00028,2]
[386516315,1758331839004,-235.9782306,0.00028032,2]
[386516316,1758331839013,-666.27621678,0.00028053,2]
[386516317,1758331839023,-500.0,0.00028105,2]
[386516318,1758331839032,-500.0,0.00028134,2]
[386516319,1758331839042,-1055.04,0.0002814,2]
[386516320,1758331839051,-500.0,0.00028141,2]
[386516321,1758331839061,-666.27621678,0.00028153,2]
[386516322,1758331839070,-500.0,0.0002818,2]
[386516323,1758331839080,-500.0,0.0002818,2]
[386516324,1758331839090,-600.0,0.00028222,2]
[386516325,1758331839099,-167.7759644,0.00028253,19]
[386516326,1758331839108,-666.27621678,0.00028253,2]
[386516327,1758331839118,-268.42181106,0.00028256,2]
[386516328,1758331839129,-1055.04,0.0002828,2]
[386516329,1758331839139,-500.0,0.00028312,2]
[386516330,1758331839148,-161.84881539,0.00028329,30]
[386516331,1758331839158,-666.27621678,0.00028353,2]
[386516332,1758331839167,-500.0,0.00028371,2]
[386516333,1758331839176,-168.0,0.00028383,2]
[386516334,1758331839185,-1055.04,0.0002842,2]
[386516335,1758331839195,-946.6594777,0.00028449,2]
[386516336,1758331839205,-666.27621678,0.00028453,2]
[386516337,1758331839215,-500.0,0.00028505,2]
[386516338,1758331839224,-500.0,0.00028524,2]
[386516339,1758331839236,-666.27621678,0.00028553,2]
[386516340,1758331839245,-500.0,0.00028576,7]
[386516341,1758331839255,-500.0,0.00028576,2]
[386516342,1758331839264,-160.5772462,0.0002863,30]
[386516343,1758331839273,-162.0300095,0.0002863,30]
[386516344,1758331839283,-296.3096638,0.0002863,30]
[386516345,1758331839293,-585.3964936,0.0002863,30]
[386516346,1758331839302,-585.3964936,0.0002863,30]
[386516347,1758331839314,-500.0,0.0002864,2]
[386516348,1758331839323,-168.0,0.00028644,2]
[386516349,1758331839331,-666.27621678,0.00028653,2]
[386516350,1758331839340,-152.532536,0.00028658,30]
[386516351,1758331839349,-309.2013631,0.00028658,30]
[386516352,1758331839359,-500.0,0.00028709,2]
[386516353,1758331839368,-500.0,0.00028722,2]
[386516354,1758331839377,-500.0,0.00028724,2]
[386516355,1758331839386,-500.0,0.00028745,2]
[386516356,1758331839394,-666.27621678,0.00028753,2]
[386516357,1758331839404,-5049.57822224,0.00028797,19]
[386516358,1758331839413,-5000.0,0.00028797,19]
[386516359,1758331839422,-5000.0,0.00028797,19]
[386516360,1758331839431,-5000.0,0.00028797,21]
[386516361,1758331839440,-5000.0,0.00028797,18]
[386516362,1758331839449,-500.0,0.00028802,2]
[386516363,1758331839458,-168.0,0.00028823,2]
[386516364,1758331839468,-500.0,0.00028904,2]
[386516365,1758331839477,-500.0,0.00028949,2]
[386516366,1758331839487,-168.0,0.00028958,2]
[386516367,1758331839497,-500.0,0.00028978,2]
[386516368,1758331839506,-878.07251311,0.00029,2]
[386516369,1758331839516,-3035.55346182,0.00029,60]
[386516370,1758331839525,-209.0,0.00029,2]
[386516371,1758331839534,-168.0,0.00029033,2]
[386516372,1758331839544,-500.0,0.00029054,2]
[386516373,1758331839553,-500.0,0.00029087,2]
[386516374,1758331839563,-2389.10878649,0.00029095,2]
[386516375,1758331839573,-2477.49911442,0.00029095,2]
[386516376,1758331839583,-5000.0,0.00029105,30]
[386516377,1758331839593,-5000.0,0.00029105,30]
[386516378,1758331839603,-5000.0,0.00029105,30]
[386516379,1758331839624,-5000.0,0.00029105,30]
[386516380,1758331839633,-5000.0,0.00029105,30]
[386516381,1758331839642,-4614.02,0.00029105,30]
[386516382,1758331839651,-500.0,0.00029125,2]
[386516383,1758331839660,-151.0,0.00029185,2]
[386516384,1758331839669,-151.0,0.00029185,2]
[386516385,1758331839678,-151.0,0.00029185,2]
[386516386,1758331839688,-500.0,0.00029185,2]
[386516387,1758331839697,-500.0,0.00029185,2]
[386516388,1758331839706,-168.0,0.00029186,2]
[386516389,1758331839715,-607.23944054,0.00029223,2]
[386516390,1758331839725,-5500.63520523,0.00029223,2]
[386516391,1758331839734,-480.0,0.0002925,2]
[386516392,1758331839743,-500.0,0.00029289,2]
[386516393,1758331839753,-500.0,0.00029291,2]
[386516394,1758331839762,-2000.0,0.000293,2]
[386516395,1758331839771,-2000.0,0.000293,2]
[386516396,1758331839780,-250.0,0.000293,10]
[386516397,1758331839790,-2389.10878649,0.00029313,2]
[386516398,1758331839800,-2477.49911442,0.00029313,2]
[386516399,1758331839809,-151.0,0.00029322,7]
[386516400,1758331839818,-151.0,0.00029322,7]
[386516401,1758331839828,-151.0,0.00029322,7]
[386516402,1758331839837,-151.0,0.00029322,7]
[386516403,1758331839846,-151.0,0.00029322,7]
[386516404,1758331839856,-155.0,0.00029322,2]
[386516405,1758331839865,-597.80863922,0.00029322,2]
[386516406,1758331839874,-2391.23455687,0.00029322,2]
[386516407,1758331839884,-5374.89747519,0.00029322,2]
[386516408,1758331839893,-402.56638665,0.00029322,2]
[386516409,1758331839902,-1610.2655466,0.00029322,2]
[386516410,1758331839912,-3619.47438238,0.00029322,2]
[386516412,1758331839921,-786.89528233,0.00029322,2]
[386516414,1758331839931,-3144.43354821,0.00029322,2]
[386516416,1758331839940,-225.18232297,0.00029322,2]
[386516417,1758331839949,-1738.14949661,0.00029322,2]
[386516419,1758331839959,-500.0,0.00029322,5]
[386516420,1758331839968,-863352.94943903,0.00029323,20]
[386516464,1758331843542,-508.04924482,0.00029323,20]
[386516475,1758331846352,-531.75067929,0.00027,3]
[386516476,1758331846362,-635.97859215,0.00028449,2]
[386516477,1758331846371,-20958.39581949,0.00029323,20]
[386516486,1758331948599,228.91895713,0.000199,2]
[386516487,1758331980581,150.0,0.00020427,2]
[386516488,1758332043197,500.0,0.000204,2]
[386516490,1758332054728,500.0,0.000204,2]
[386516493,1758332145203,92.86644568,0.000199,2]
[386516494,1758332145228,136.05251144,0.000199,2]
[386516499,1758332328576,215.1546081,0.000199,2]
[386516507,1758332468692,496.0,0.0002739,120]
[386516508,1758332528985,1421.67610647,0.00029349,120]
[386516510,1758332709716,208.95191405,0.000199,2]
[386516521,1758332764158,343.65439083,0.000199,2]
[386516522,1758332794303,161.58108226,0.00019,2]
[386516524,1758332829133,-417.15472785,0.00024,3]
[386516525,1758332829154,-417.15472785,0.00024,3]
[386516526,1758332829175,-587.49,0.00025,30]
[386516527,1758332829195,-160.0,0.00025248,2]
[386516528,1758332829216,-262.0984287,0.0002623,30]
[386516529,1758332829240,-64.86088172,0.00026355,2]
[386516530,1758332838124,-95.13911828,0.00026355,2]
[386516531,1758332838146,-340.23145005,0.00026384,2]
[386516534,1758332867904,603.0,0.000207,2]
[386516539,1758333032446,-159.76854995,0.00026384,2]
[386516541,1758333032458,-500.0,0.00026567,2]
[386516549,1758333032573,-102.68567217,0.00026567,2]
[386516550,1758333032632,-48.54348588,0.00026567,2]
[386516552,1758333032642,-160.0,0.00026571,2]
[386516554,1758333032651,-155.8,0.00026583,7]
[386516556,1758333032663,-141.374407,0.00026683,7]
[386516558,1758333032675,-14.425593,0.00026683,7]
[386516560,1758333032685,-155.8,0.00026783,7]
[386516562,1758333032694,-160.0,0.00026807,2]
[386516563,1758333032704,-87.66158217,0.00026848,2]
[386516566,1758333032725,-217.40847694,0.00026848,2]
[386516568,1758333032734,-217.99592756,0.00026854,2]
[386516570,1758333032743,-300.0,0.00026861,2]
[386516572,1758333032753,-300.0,0.00026861,2]
[386516573,1758333032762,-324.47431985,0.00026862,2]
[386516576,1758333032773,-1032.61708873,0.00026862,2]
[386516578,1758333032784,-4198.093542,0.00026862,2]
[386516580,1758333032793,-233.43972884,0.00026863,2]
[386516582,1758333032802,-848.13460282,0.00026863,2]
[386516583,1758333032811,-155.0,0.00026883,7]
[386516586,1758333032821,-155.8,0.00026883,7]
[386516587,1758333032830,-155.8,0.00026983,7]
[386516590,1758333032840,-482.99150284,0.00026999,2]
[386516591,1758333032850,-480.0,0.00026999,2]
[386516593,1758333032859,-480.0,0.00026999,2]
[386516595,1758333032868,-531.75067929,0.00027,3]
[386516597,1758333032877,-155.80205351,0.00027083,7]
[386516599,1758333032887,-504.31758567,0.0002716,2]
[386516600,1758333032896,-151.0,0.00027239,6]
[386516602,1758333032906,-480.0,0.00027273,2]
[386516603,1758333032915,-480.0,0.00027273,2]
[386516604,1758333032924,-191.51797055,0.00027396,2]
[386516605,1758333032934,-391.66285546,0.00027396,2]
[386516607,1758333032943,-219.91106605,0.00027396,2]
[386516609,1758333032953,-1000.0,0.00027397,2]
[386516611,1758333032962,-500.0,0.0002748,7]